Cogmind - Beta 14 @@@ ROGUE MODE // 2025.01.04 @ 16:46:42 Player: TerrahLol Result: Destroyed by H-55 Commando with Gauss Rifle Performance ------------- Evolutions (0) 0 Regions Visited (3) 600 Robots Destroyed (29) 145 Value Destroyed (674) 674 Prototype IDs (24) 480 Alien Tech Used (0) 0 Bonus (307) 307 TOTAL SCORE: 2206 Bonus ------- Follower Combat Kills 7 Aligned with FarCom 300 Cogmind --------- Core Integrity 0/250 Matter 144/300 Energy 96/100 System Corruption 0% Temperature Cool (0) Movement Treading (490) Ox4 Location -10/Exiles Parts ------- > --- POWER (1) -------- (None) > --- PROPULSION (2) --- Armored Treads > --- UTILITY (2) ------ Huge Storage Unit Improved Trap Extractor (0/6) > --- WEAPON (2) ------- Improved Assault Rifle Rocket Launcher > --- INVENTORY (25) --- Ion Engine Aluminum Leg Aluminum Leg Heat Sink Signal Interpreter Modified TNC Improved Targeting Computer Power Shielding Power Shielding Heavy EM Pulse Gun Heavy EM Pulse Gun Medium Laser Improved Assault Rifle Improved Assault Rifle Improved Assault Rifle Mini Grenade Launcher Mini Grenade Launcher Peak State ------------ > --- POWER ------------ Light Nuclear Core > --- PROPULSION ------- Armored Treads Carbon-fiber Leg > --- UTILITY ---------- Huge Storage Unit Improved Trap Extractor > --- WEAPON ----------- Improved Assault Rifle Mini Grenade Launcher > --- INVENTORY -------- Ion Engine Aluminum Leg Aluminum Leg Heat Sink Signal Interpreter Modified TNC Improved Targeting Computer Power Shielding Power Shielding Heavy EM Pulse Gun Heavy EM Pulse Gun Medium Laser Improved Assault Rifle Improved Assault Rifle Improved Assault Rifle Rocket Launcher Mini Grenade Launcher [Rating: 22] Favorites ----------- Power Ion Engine Engine Ion Engine Power Core Light Nuclear Core Propulsion Light Treads Treads Light Treads Leg Aluminum Leg Utility Huge Storage Unit Device Improved Trap Extractor Storage Huge Storage Unit Processor Signal Interpreter Protection Power Shielding Weapon Improved Assault Rifle Energy Gun Medium Laser Energy Cannon Beam Cannon Ballistic Gun Improved Assault Rifle Launcher Mini Grenade Launcher Build | -11 -10 -10 -10 ------- Run | Yrd Mat Min Exi Slots Evolved . | . . . . Power . | . . . . Propulsion . | . . . . Utility . | . . . . Weapon . | . . . . Parts Attached 26 | 6 14 3 3 Power 3 | 1 1 . 1 Engine 2 | 1 1 . . Core 1 | . . . 1 Reactor . | . . . . Propulsion 6 | 2 2 1 1 Treads 3 | 2 . . 1 Leg 3 | . 2 1 . Wheel . | . . . . Hover . | . . . . Flight . | . . . . Utility 7 | 1 5 1 . Device 2 | . 1 1 . Storage 3 | 1 2 . . Processor 1 | . 1 . . Hackware . | . . . . Protection 1 | . 1 . . Artifact . | . . . . Weapon 10 | 2 6 1 1 Energy Gun 1 | . 1 . . Energy Cannon 1 | . 1 . . Ballistic Gun 5 | 2 3 . . Ballistic Cannon . | . . . . Launcher 3 | . 1 1 1 Special Weapon . | . . . . Impact Weapon . | . . . . Slashing Weapon . | . . . . Piercing Weapon . | . . . . Special Melee Weapon . | . . . . Unidentified Prototypes 1 | . 1 . . Parts Lost 4 | . 1 . 3 Power 2 | . . . 2 Propulsion 1 | . . . 1 Utility . | . . . . Weapon 1 | . 1 . . Highest Loss Streak 2 | . 1 . 2 To Critical Strikes . | . . . . Average Slot Usage (%) 99 | . 99 100 97 Engine 13 | . 14 14 12 Treads 7 | . 18 . . Leg 19 | . 9 28 25 Device 5 | . . 5 14 Storage 14 | . 14 14 14 Processor 7 | . 11 8 . Energy Cannon 3 | . 7 . . Ballistic Gun 19 | . 17 26 14 Launcher 4 | . 2 1 14 Peak Build Rating 22 | 6 13 19 22 Average Rating 11 | 5 9 15 17 On Entrance 9 | . 6 13 18 Naked Turns . | . . . . Heaviest Build 94 | 13 91 94 92 Greatest Support 40 | 40 40 25 25 Greatest Overweight (x) 5 | 1 4 4 5 Average Overweight (x) 1 | . . 3 3 Largest Inventory Capacity 25 | 8 25 25 25 Average Capacity 17 | 7 14 25 25 Most Carried 19 | 6 15 18 19 Average Carried 12 | 3 12 16 18 Final Capacity 25 | 8 25 25 25 Final Carried 18 | 6 15 18 17 Class Distribution -------------------- 100% | Mutant Dominant Class ---------------- Mutant | -10/Materials Mutant | -10/Mines Mutant | -10/Exiles Resources | -11 -10 -10 -10 ----------- Run | Yrd Mat Min Exi Matter Collected 542 | 253 253 36 . Remotely . | . . . . Salvage Created 825 | . 587 63 175 Parts 57 | . 32 11 14 Haulers Intercepted 1 | . 1 . . Recyclers Shooed . | . . . . Parts Field Recycled . | . . . . Retrieved Matter . | . . . . Parts Self-Destructed . | . . . . Prevented . | . . . . Kills | -11 -10 -10 -10 ------- Run | Yrd Mat Min Exi Combat Hostiles Destroyed 24 | . 12 6 6 Guns 11 | . 5 3 3 Cannons 7 | . 7 . . AOE 6 | . . 3 3 Classes Destroyed 7 | . 5 . 2 Hauler 1 | . 1 . . Recycler 2 | . 2 . . Watcher 2 | . 2 . . Swarmer 11 | . 5 6 . Grunt 11 | . 7 . 4 Demolisher 1 | . . . 1 Hunter 1 | . . . 1 Best Kill Streak 4 | . 4 3 4 Combat Bots Only 4 | . 3 3 4 Max Kills in Single Turn 3 | . 1 3 2 Gunslinging . | . . . . Exploded 3 | . . 3 2 Melee . | . . . . Uniques/NPCs Destroyed . | . . . . Combat | -11 -10 -10 -10 -------- Run | Yrd Mat Min Exi Hostile Shots Fired 129 | . 49 21 59 Missed 34 | . 10 4 20 Damage Taken 1481 | . 575 194 712 Core 264 | . 74 24 166 Absorbed by Shields . | . . . . Core Remaining (%) 100 | 100 . . . Volleys Fired 59 | . 35 10 14 Largest 2 | . 2 2 2 Hottest 83 | . 83 46 56 Shots Fired 103 | . 66 19 18 Gun 71 | . 39 18 14 Cannon 27 | . 27 . . Launcher 5 | . . 1 4 Special . | . . . . Kinetic 71 | . 39 18 14 Thermal 27 | . 27 . . Explosive 5 | . . 1 4 Electromagnetic . | . . . . Robot Hit Streak 9 | . 9 3 5 Robot Miss Streak 3 | . 1 3 2 Penetration Max . | . . . . Secondary Targets 1 | . . 1 . Max Gunslinging Chain 1 | . . 1 . Shots Hit Robots 64 | . 44 9 11 Core Hits 46 | . 23 8 15 Critical Kills . | . . . . Critical Parts Destroyed . | . . . . Critical Strikes . | . . . . Melee Attacks . | . . . . Impact . | . . . . Slashing . | . . . . Piercing . | . . . . Sneak Attacks . | . . . . Combat Hostiles . | . . . . Follow-up Attacks . | . . . . Damage Inflicted 1340 | . 685 221 434 Guns 572 | . 300 135 137 Cannons 385 | . 385 . . Explosions 383 | . . 86 297 Melee . | . . . . Ramming . | . . . . Kinetic 572 | . 300 135 137 Thermal 385 | . 385 . . Explosive 383 | . . 86 297 Electromagnetic . | . . . . Impact . | . . . . Slashing . | . . . . Piercing . | . . . . Highest Corruption . | . . . . Average Corruption . | . . . . Corruption Purged . | . . . . Corruption Blocked . | . . . . Overload Shots . | . . . . Overflow Damage . | . . . . Projectiles . | . . . . Explosions . | . . . . Melee . | . . . . Knockbacks . | . . . . Impact . | . . . . Kinetic . | . . . . Secondary . | . . . . Self-Inflicted Damage . | . . . . Shots . | . . . . Rammed . | . . . . Targets Rammed . | . . . . Kicked . | . . . . Crushed . | . . . . Highest Temperature 207 | . 207 . 9 Average Temperature 57 | . 58 . 6 Received Heat Transfer 189 | . 147 . 42 Siege Activations . | . . . . Robots Corrupted . | . . . . Combat Hostiles . | . . . . Parts Fried . | . . . . Impact Corruptions . | . . . . Robots Melted . | . . . . Combat Hostiles . | . . . . Parts Melted . | . . . . Heat Transferred 814 | . 814 . . Parts Sabotaged . | . . . . Parts Stolen . | . . . . Parts Stripped . | . . . . Power Chain Reactions . | . . . . Alert | -11 -10 -10 -10 ------- Run | Yrd Mat Min Exi Peak Influence 187 | . 187 162 . Initial . | . . . . Average 34 | . 62 31 . Maximum Alert Level . | . . . . Low Security (%) 100 | 100 100 100 . Level 1 . | . . . . Level 2 . | . . . . Level 3 . | . . . . Level 4 . | . . . . Level 5 . | . . . . High Security . | . . . . Max Security . | . . . . Squads Dispatched 1 | . 1 . . Investigation 1 | . 1 . . Extermination . | . . . . Reinforcement . | . . . . Assault . | . . . . Garrison . | . . . . Intercept . | . . . . Searches Triggered . | . . . . Construction Impeded . | . . . . Haulers Reinforced . | . . . . Active Scanning Responses . | . . . . Cargo Convoy Interrupts . | . . . . Stealth | -11 -10 -10 -10 --------- Run | Yrd Mat Min Exi Distress Signals . | . . . . Communications Jammed . | . . . . Distress Signals . | . . . . Times Spotted 39 | . 18 9 12 Peak Tracking Total 7 | . 3 3 7 Tactical Retreats 1 | . . 1 . Traps | -11 -10 -10 -10 ------- Run | Yrd Mat Min Exi Traps Triggered 6 | . 4 2 . Indirectly . | . . . . Trap Hack Attempts . | . . . . Triggered . | . . . . Disarmed . | . . . . Reprogrammed . | . . . . Reused . | . . . . Traps Extracted . | . . . . Installed . | . . . . Triggered . | . . . . Machines | -11 -10 -10 -10 ---------- Run | Yrd Mat Min Exi Machines Disabled 3 | . 1 . 2 Max in Single Turn 1 | . 1 . 1 Machines Repaired . | . . . . Machines Dismantled . | . . . . Machines Sabotaged . | . . . . Overloaded Fab Kills . | . . . . Hacking | -11 -10 -10 -10 --------- Run | Yrd Mat Min Exi Machines Accessed 10 | . 7 1 2 Terminals 5 | . 5 . . Fabricators . | . . . . Repair Stations . | . . . . Recycling Units 2 | . 2 . . Scanalyzers . | . . . . Garrison Access . | . . . . Total Hacks 20 | . 11 1 8 Successful 12 | . 3 1 8 Failed 8 | . 8 . . Catastrophic 2 | . 2 . . Database Lockouts . | . . . . Manual 1 | . . . 1 Terminals 9 | . 9 . . Fabricators . | . . . . Repair Stations . | . . . . Recycling Units 2 | . 2 . . Scanalyzers . | . . . . Garrison Access . | . . . . Terminal Hacks 10 | . 1 1 8 Record 7 | . . . 7 Open Door 1 | . . 1 . Hauler Manifests 1 | . 1 . . Derelict Proto ID Bank 1 | . . . 1 Fabricator Hacks . | . . . . Repair Station Hacks . | . . . . Recycling Unit Hacks 2 | . 2 . . Report Inventory 2 | . 2 . . Scanalyzer . | . . . . Garrison Access Hacks . | . . . . Unauthorized Hacks . | . . . . Terminals . | . . . . Fabricators . | . . . . Repair Stations . | . . . . Recycling Units . | . . . . Scanalyzers . | . . . . Garrison Access . | . . . . Data Cores Recovered . | . . . . Used . | . . . . Hacking Detections 6 | . 6 . . Full Trace Events . | . . . . Feedback Events . | . . . . Feedback Blocked . | . . . . Robot Schematics Acquired . | . . . . Robots Built . | . . . . Authchips . | . . . . Time . | . . . . Total Robot Build Rating . | . . . . Part Schematics Acquired . | . . . . Parts Built . | . . . . Authchips . | . . . . Time . | . . . . Total Part Build Rating . | . . . . Parts Repaired . | . . . . Time . | . . . . Parts Recycled . | . . . . Recycled Matter . | . . . . Retrieved Matter . | . . . . Retrieved Components . | . . . . Parts Scanalyzed . | . . . . Part Schematics Acquired . | . . . . Parts Damaged . | . . . . Bothacking | -11 -10 -10 -10 ------------ Run | Yrd Mat Min Exi Used RIF Installer . | . . . . Robots Hacked . | . . . . Non-combat . | . . . . Combat . | . . . . Robot Hacks Applied . | . . . . Relay Couplers Released . | . . . . Fabnet Peak Effective % . | . . . . Robots Rewired . | . . . . Allies Hacked . | . . . . Hacks Repelled . | . . . . Allies | -11 -10 -10 -10 -------- Run | Yrd Mat Min Exi Total Allies 1 | . . 1 . Largest Group 1 | . . 1 . Highest-Rated Group 31 | . . 31 . Highest-Rated Ally 31 | . . 31 . Total Orders . | . . . . Ally Attacks 4 | . . 4 . Total Damage 42 | . . 42 . Kills 1 | . . 1 . Allies Corrupted . | . . . . Allies Melted . | . . . . Intel | -11 -10 -10 -10 ------- Run | Yrd Mat Min Exi Robot Analysis Total . | . . . . Derelict Logs Recovered 2 | . . 2 . Drone Launches . | . . . . Drone Recoveries . | . . . . Exploration | -11 -10 -10 -10 ------------- Run | Yrd Mat Min Exi Turns Passed 4283 | 974 1325 1293 691 Spaces Moved 1502 | 343 633 334 192 Core 5 | 5 . . . Treads 799 | 338 456 . 5 Legs 698 | . 177 334 187 Wheels . | . . . . Hover . | . . . . Flight . | . . . . Fastest Speed 50 | 50 160 330 330 Average Speed 239 | 158 180 376 339 Slowest Speed 490 | 160 400 400 490 Overloaded Moves . | . . . . Propulsion Burnouts . | . . . . Robots Hopped . | . . . . Cave-ins Triggered . | . . . . Exploration Rate (%) 64 | 31 96 80 49 Regions Visited 3 Branch Regions 2 Pre-discovered Areas 2 | . . 2 . Known Exits Taken 1 | . 1 . . Unknown Exits Taken 2 | 1 . 1 . Scrap Searched 1 | . . 1 . Spaces Dug . | . . . . Terrain Destroyed 15 | . . 11 4 Melee . | . . . . Projectile . | . . . . AOE 15 | . . 11 4 Terrain Rammed . | . . . . Walls Destroyed . | . . . . Machines Disabled . | . . . . Actions | -11 -10 -10 -10 --------- Run | Yrd Mat Min Exi Total 2091 | 771 755 352 213 Wait 463 | 416 44 1 2 Move 1499 | 342 632 333 192 Hop . | . . . . Pick Up 30 | 7 18 4 1 Fast Attach 7 | 5 2 . . Attach 5 | 1 1 1 2 Detach 1 | . 1 . . Swap 14 | . 11 2 1 Drop 13 | . 11 1 1 Fire 59 | . 35 10 14 Melee . | . . . . Ram . | . . . . Kick . | . . . . Crush . | . . . . Escape Stasis . | . . . . Rewire . | . . . . Trap . | . . . . Miscellaneous . | . . . . Route ------- -11/Scrapyard -10/Materials (discovered 5 exits: *Mat x3 / *Min / *Sub) -10/Mines (discovered 3 exits: *Mat x2 / *Exi) -10/Exiles History --------- Turn | Location | Event 11 | -11/Scrapyard | Discovered new exit (range 15) 975 | -11/Scrapyard | Entered Materials 976 | -10/Materials | Build established: Mutant 1213 | -10/Materials | Discovered new exit (range 7) 1224 | -10/Materials | Identified exit to Mines 1383 | -10/Materials | Discovered new exit (range 11) 1411 | -10/Materials | Identified exit to Materials 1683 | -10/Materials | Discovered exit to Materials (range 12) 1743 | -10/Materials | Discovered new exit (range 15) 1763 | -10/Materials | Identified exit to Subcaves 1856 | -10/Materials | Discovered exit to Materials (range 14) 2300 | -10/Materials | Entered Mines 2307 | -10/Mines | Escorted by a lone wolf Derelict 2327 | -10/Mines | Learned location of Storage (-8) 2709 | -10/Mines | Learned Materials terminal intel 3018 | -10/Mines | Met a Derelict who couldn't figure out how to use a Trap Extractor 3125 | -10/Mines | Discovered exit to Materials (range 10) 3140 | -10/Mines | Received a Rocket Launcher from a helpful Derelict 3453 | -10/Mines | Discovered exit to Materials (range 5) 3573 | -10/Mines | Deemed a non-threat by the Exiles lab entrance 3573 | -10/Mines | Discovered new exit (range 5) 3593 | -10/Mines | Entered Exiles 3676 | -10/Exiles | Met 8R-AWN 3729 | -10/Exiles | Met EX-HEX 3834 | -10/Exiles | Met EX-BIN 3871 | -10/Exiles | Aligned with FarCom system 3874 | -10/Exiles | Given EX-Vault access code 3950 | -10/Exiles | Opened EX-Vault 4046 | -10/Exiles | Found Modified TNC 4085 | -10/Exiles | Exiles lab attacked by MAIN.C 4189 | -10/Exiles | Core integrity fell below 50% 4278 | -10/Exiles | Core integrity fell below 20% 4284 | -10/Exiles | Destroyed by H-55 Commando with Gauss Rifle Last Messages --------------- 04197_ Machine disabled. 04199_ Penetrated by Slug. 04205_ Aluminum Leg destroyed. 04206_ H-55 Commando destroyed. 04219_ The unstable cave ceiling collapses. 04240_ Machine disabled. 04244_ Dropped Carbon-fiber Leg. 04248_ G-34 Mercenary knocked back. 04259_ DAS Turret suffers critical hit (Destroy). 04266_ Penetrated by Slug. 04269_ Machine disabled. 04269_ Penetrated by Slug. 04271_ G-34 Mercenary destroyed. 04272_ Slug penetrates Machine. 04274_ Penetrated by Slug. 04275_ G-34 Mercenary destroyed. 04278_ Penetrated by Slug. 04281_ Lgt. Nuclear Core destroyed. 04281_ G-34 Mercenary destroyed. 04283_ Penetrated by Slug. Map ----- +----------------------------------------------------+ | ???????????????????????????????####??# ##""""" | | ???????????????????????????????"""""?# ####### | | ???????????????????????????????""" ## #?????? | | ?????????????????????????????#""X" #?????? | | ?????????????????????????????#" #?????? | | ?????????????????????????????#" ## #?????? | | ?????????????????????????????#""""""?# #?##### | | ???????????????????????????????"###??# #?#"""" | | ?????????????????????????????????????# #?#"""" | | ?????????????????????????????????????# #?#"""" | | ????????????????????????????????????## ###"" " | | ????????????????????????????????????#" " | | ????????????????????????????????????#" | | ????????????????????????????????????#" | | ????????????????????????????????????#" | | ??????????????????????######????????#" | | ?????????????????????? """#???????#" | | ?????????????????????#"" """#???????## | | ?????????????????????#"" #????????# | | ?????????????????????#"" ?????????#" "X" | | ?????????????????????#"" "?????????#" """ | | ?????????????????????# "??????????#" """""" | | ??????????????????????"" "?????????##" ####### | | ???????????????????????# #????????##"" #?????? | | ?????????????????????#?# ###?######"" #?????? | | ?????????? """#####X# @#"###" """"" ##????? | | ?????????? "" " ##???# | | ?????????? " ##### | | ?????????? = | | ??????????# | | ???????????## | | ????????????## | | ?????????????## =% | | ??????????????##" = | | ???????????????#""" [=%[ | | ???????????????#" g ! ##### = * | | ????????????????" h*%[ ""###???# # "" | | ???????????????? " %%= """##???????####""" | | ????????????????" !*=h ""##???????????#"""" | | ???????????????? h h""#????????????#"" | | ???????????????? ##?????????????""" | | ????????????????? ??????????????? | | ?????????????????? ?????????????? | | ???????????????????? ?????????????? | | ?????????????????????? ???????????????? | | ????????????????????????? ???????????????? | | ????????????????????????????????????????????? | | ?????????????????????????????????????????????" " " | | ???????????????????????????????????????????????""" | | ?????????????????????????????????????????????????" | +----------------------------------------------------+ Best States ------------- Heat Dissipation 25 Energy Generation 14 Energy Capacity 250 Matter Stores 300 Matter Capacity 300 Sight Range 16 Terrain Scan Density 10 Power Shielding 33 Evasion (%) 40 Recoil Reduction 2 Trap Extractor Capacity 6 Item Schematics ----------------- None Robot Schematics ------------------ None Fabricated ------------ Nothing Alien Tech Used ----------------- None Achievements -------------- None Challenges ------------ None Game ------ Seed TitaniumRestorationLink Manual? 0 Play Time 00:30:41 Cumulative 6.0 hours Start 2025.01.04 @ 16:15:29 End 2025.01.04 @ 16:46:42 Sessions 1 Manual Loads 0 Difficulty Rogue Special Mode None Game No. 10 Rogue 10 Adventurer 0 Explorer 0 Win Type - Total 0 Types 0/0/0/0/0/0/0/0/0 Lore% 9 Gallery% 11 Achievement% 14 Wizard Run 0 Options --------- Layout 0 ASCII 0 Keyboard 0 Movement Mouse Keybinds 0 Fullscreen 2 Font 24/Smallcaps Map View 38x25 Zoom Use 99% Tactical HUD 1 Map Filters NONE Filters NONE Steam 1 RUN: a8b493a2-3698-4bdd-bfbc-080496a7d23b